[Event "EYTCC Open U18 2022"]
[Site "Thessaloniki"]
[Date "2022.07.12"]
[Round "1.1"]
[White "Svane, Frederik"]
[Black "Subelj, Jan"]
[Result "1/2-1/2"]
[ECO "C77"]
[WhiteElo "2521"]
[BlackElo "2498"]
[Annotator "ChessBase"]
[PlyCount "124"]
[EventDate "2022.07.12"]
[EventType "team-tourn"]
[EventCountry "GRE"]
[SourceTitle "playchess.com"]
[Source "ChessBase"]
[SourceQuality "1"]
[WhiteTeam "Germany"]
[BlackTeam "Slovenia"]
[WhiteTeamCountry "GER"]
[BlackTeamCountry "SLO"]
[TimeControl "40/5400+30:1800+30"]

1. e4 {[%emt 0:00:04]} e5 {[%emt 0:00:23]} 2. Nf3 {[%emt 0:00:06]} Nc6 {[%emt 0:00:20]} 3. Bb5 {[%emt 0:00:06]} a6 {[%emt 0:00:32]} 4. Ba4 {[%emt 0:00:05]} Nf6 {[%emt 0:00:29]} 5. O-O {[%emt 0:00:07]} b5 {[%emt 0:00:51]} 6. Bb3 {[%emt 0:00:06]} Bc5 {[%emt 0:00:15]} 7. Nc3 {[%emt 0:01:03]} O-O {[%emt 0:01:49]} 8. a4 {[%emt 0:00:07]} Rb8 {[%emt 0:02:51]} 9. axb5 {[%emt 0:00:15]} axb5 {[%emt 0:00:08]} 10. Nd5 {[%emt 0:00:06]} Nxe4 {[%emt 0:06:24]} 11. d3 {[%emt 0:00:04]} Nf6 {[%emt 0:00:11]} 12. Bg5 {[%emt 0:00:04]} Be7 {[%emt 0:00:08]} 13. Nxe7+ {[%emt 0:00:05]} Qxe7 {[%emt 0:00:08]} 14. Re1 {[%emt 0:00:04]} h6 {[%emt 0:08:03]} 15. Bh4 {[%emt 0:00:04]} Bb7 {[%emt 0:24:08]} 16. d4 {[%emt 0:00:09]} e4 {[%emt 0:01:41]} 17. d5 {[%emt 0:02:32]} Ne5 {[%emt 0:02:04]} 18. Rxe4 {[%emt 0:13:20]} Nxf3+ {[%emt 0:00:18]} 19. gxf3 {[%emt 0:00:07]} Qd6 {[%emt 0:00:37]} 20. Rd4 {[%emt 0:01:07]} Ra8 {[%emt 0:10:10]} 21. Rxa8 {[%emt 0:11:15]} Rxa8 {[%emt 0:00:09]} 22. Bg3 {[%emt 0:01:53]} Qb6 {[%emt 0:03:43]} 23. Kg2 {[%emt 0:02:56]} Re8 {[%emt 0:08:14]} 24. Qd3 {[%emt 0:02:21]} c5 {[%emt 0:16:12]} 25. dxc6 {[%emt 0:00:14]} Bxc6 {[%emt 0:02:18]} 26. Rd6 {[%emt 0:05:41]} Kh8 27. Bxf7 {[%emt 0:05:42]} Re7 {[%emt 0:06:54]} 28. Bb3 {[%emt 0:40:50]} Qc5 {[%emt 0:01:10]} 29. Qg6 {[%emt 0:02:37]} Qg5 {[%emt 0:02:53]} 30. Qxg5 {[%emt 0:00:26]} hxg5 {[%emt 0:00:05]} 31. h3 {[%emt 0:00:14]} Kh7 {[%emt 0:01:49]} 32. Rd3 {[%emt 0:01:50]} Re1 {[%emt 0:00:34]} 33. Re3 {[%emt 0:03:48]} Rd1 {[%emt 0:00:32]} 34. c4 {[%emt 0:01:55]} Rd2 {[%emt 0:00:05]} 35. cxb5 {[%emt 0:05:11]} Bxb5 {[%emt 0:00:04]} 36. Re5 {[%emt 0:00:19]} Bc6 {[%emt 0:00:14]} 37. Rxg5 {[%emt 0:00:44]} Rxb2 {[%emt 0:01:25]} 38. Bf7 {[%emt 0:00:11]} Rb5 {[%emt 0:00:47]} 39. h4 {[%emt 0:00:04]} Rxg5 {[%emt 0:00:33]} 40. hxg5 {[%emt 0:00:00]} Bd5 {[%emt 0:00:00]} 41. Bxd5 {[%emt 0:28:03]} Nxd5 {[%emt 0:27:11]} 42. Kh3 {[%emt 0:00:06]} Ne7 {[%emt 0:00:30]} 43. Kg4 {[%emt 0:00:17]} g6 {[%emt 0:01:05]} 44. Kf4 {[%emt 0:04:14]} Nf5 {[%emt 0:00:17]} 45. Ke5 {[%emt 0:00:04]} Kg7 {[%emt 0:00:04]} 46. Kd5 {[%emt 0:02:11]} Kf7 {[%emt 0:00:09]} 47. Ke5 {[%emt 0:00:18]} d6+ {[%emt 0:00:31]} 48. Kd5 {[%emt 0:00:20]} Ke7 {[%emt 0:00:04]} 49. Bf4 {[%emt 0:00:47]} Kd7 {[%emt 0:00:03]} 50. Bd2 {[%emt 0:00:27]} Ne7+ {[%emt 0:00:05]} 51. Ke4 {[%emt 0:00:17]} Ke6 {[%emt 0:00:08]} 52. f4 {[%emt 0:00:57]} Nf5 {[%emt 0:02:44]} 53. Bc3 {[%emt 0:00:00]} d5+ {[%emt 0:00:00]} 54. Kd3 {[%emt 0:00:00]} Nd6 {[%emt 0:00:00]} 55. Be5 {[%emt 0:00:00]} Ne4 {[%emt 0:00:00]} 56. Kd4 {[%emt 0:00:00]} Nxf2 {[%emt 0:00:00]} 57. f5+ {[%emt 0:00:00]} Kxf5 {[%emt 0:00:00]} 58. Kxd5 {[%emt 0:00:00]} Kxg5 {[%emt 0:00:00]} 59. Bd4 {[%emt 0:00:00]} Nh3 {[%emt 0:00:00]} 60. Ke4 {[%emt 0:00:00]} Kg4 {[%emt 0:00:00]} 61. Bf6 {[%emt 0:00:00]} g5 {[%emt 0:00:00]} 62. Bxg5 {[%emt 0:00:00]} Nxg5+ {[%emt 0:00:00]} 1/2-1/2

[Event "EYTCC Open U18 2022"]
[Site "Thessaloniki"]
[Date "2022.07.12"]
[Round "1.2"]
[White "Marn, Jan"]
[Black "Koellner, Ruben Gideon"]
[Result "1-0"]
[ECO "A55"]
[WhiteElo "2282"]
[BlackElo "2422"]
[Annotator "ChessBase"]
[PlyCount "107"]
[EventDate "2022.07.12"]
[EventType "team-tourn"]
[EventCountry "GRE"]
[SourceTitle "playchess.com"]
[Source "ChessBase"]
[SourceQuality "1"]
[WhiteTeam "Slovenia"]
[BlackTeam "Germany"]
[WhiteTeamCountry "SLO"]
[BlackTeamCountry "GER"]
[TimeControl "40/5400+30:1800+30"]

1. d4 {[%emt 0:00:03]} d6 {[%emt 0:00:06]} 2. Nf3 {[%emt 0:00:06]} Nf6 {[%emt 0:00:06]} 3. g3 {[%emt 0:00:19]} Nbd7 {[%emt 0:00:08]} 4. Bg2 {[%emt 0:00:08]} e5 {[%emt 0:00:08]} 5. c4 {[%emt 0:02:31]} c6 {[%emt 0:01:20]} 6. Nc3 {[%emt 0:01:13]} Be7 {[%emt 0:01:55]} 7. O-O {[%emt 0:01:52]} O-O {[%emt 0:02:49]} 8. e4 {[%emt 0:02:38]} a6 {[%emt 0:00:46]} 9. a4 {[%emt 0:00:57]} a5 {[%emt 0:00:05]} 10. h3 {[%emt 0:08:40]} Qc7 {[%emt 0:00:12]} 11. Be3 {[%emt 0:01:04]} Re8 {[%emt 0:01:14]} 12. Qc2 {[%emt 0:01:25]} Bf8 {[%emt 0:03:49]} 13. Rad1 {[%emt 0:02:19]} h6 {[%emt 0:03:27]} 14. Rfe1 {[%emt 0:01:00]} Nb8 {[%emt 0:04:13]} 15. c5 {[%emt 0:06:19]} dxc5 {[%emt 0:14:37]} 16. dxe5 {[%emt 0:00:15]} Nfd7 {[%emt 0:01:18]} 17. Bf4 {[%emt 0:03:30]} Qd8 {[%emt 0:13:20]} 18. h4 {[%emt 0:16:56]} Qe7 {[%emt 0:01:10]} 19. Rd6 {[%emt 0:06:32]} Na6 {[%emt 0:10:21]} 20. Qb3 {[%emt 0:20:15]} Nb4 {[%emt 0:05:54]} 21. e6 {[%emt 0:06:22]} fxe6 {[%emt 0:00:15]} 22. Red1 {[%emt 0:00:13]} Nf6 {[%emt 0:19:12]} 23. Ne5 {[%emt 0:04:01]} Nh5 {[%emt 0:05:44]} 24. Ng6 {[%emt 0:01:12]} Qf7 {[%emt 0:01:51]} 25. Nxf8 {[%emt 0:00:06]} Nxf4 {[%emt 0:00:15]} 26. Nd7 {[%emt 0:03:07]} Nfd3 {[%emt 0:04:26]} 27. Nb6 {[%emt 0:00:50]} Qxf2+ {[%emt 0:00:35]} 28. Kh2 {[%emt 0:00:06]} c4 {[%emt 0:00:08]} 29. Nxc4 {[%emt 0:00:34]} Nc5 {[%emt 0:02:12]} 30. Qa3 {[%emt 0:00:04]} Nc2 {[%emt 0:00:44]} 31. Qa2 {[%emt 0:00:04]} Ne1 {[%emt 0:00:41]} 32. Rxe1 {[%emt 0:05:28]} Qxe1 {[%emt 0:00:04]} 33. Nb6 {[%emt 0:00:07]} Rb8 {[%emt 0:00:39]} 34. Qc4 {[%emt 0:00:05]} Na6 {[%emt 0:01:49]} 35. Qd4 {[%emt 0:00:11]} Kh7 {[%emt 0:01:21]} 36. e5 {[%emt 0:02:10]} c5 {[%emt 0:00:47]} 37. Qd3+ {[%emt 0:01:45]} Kg8 {[%emt 0:00:15]} 38. Qg6 {[%emt 0:01:21]} Rf8 {[%emt 0:00:57]} 39. Be4 {[%emt 0:00:13]} Qf2+ {[%emt 0:00:27]} 40. Kh3 {[%emt 0:00:00]} Qf1+ {[%emt 0:00:00]} 41. Kg4 {[%emt 0:00:50]} Rf5 {[%emt 0:15:41]} 42. Rd8+ {[%emt 0:06:17]} Rf8 {[%emt 0:00:17]} 43. Qh7+ {[%emt 0:00:12]} Kf7 {[%emt 0:00:06]} 44. Rxf8+ {[%emt 0:00:04]} Kxf8 {[%emt 0:00:08]} 45. Bg6 {[%emt 0:00:04]} h5+ {[%emt 0:01:50]} 46. Qxh5 {[%emt 0:00:11]} Nc7 {[%emt 0:01:46]} 47. Qh8+ {[%emt 0:01:14]} Ke7 {[%emt 0:00:07]} 48. Nxc8+ {[%emt 0:00:42]} Kd7 {[%emt 0:00:55]} 49. Nb6+ {[%emt 0:00:26]} Kc6 {[%emt 0:00:07]} 50. Qxb8 {[%emt 0:00:07]} Kxb6 {[%emt 0:00:13]} 51. Be4 {[%emt 0:01:00]} Nd5 {[%emt 0:00:21]} 52. Qd6+ {[%emt 0:00:04]} Ka7 {[%emt 0:00:07]} 53. Nb5+ {[%emt 0:00:05]} Ka8 {[%emt 0:00:06]} 54. Qd8# {[%emt 0:00:04]} 1-0

[Event "EYTCC Open U18 2022"]
[Site "Thessaloniki"]
[Date "2022.07.12"]
[Round "1.3"]
[White "Koelle, Tobias"]
[Black "Nareks, Matic"]
[Result "1-0"]
[ECO "A42"]
[WhiteElo "2436"]
[BlackElo "2221"]
[Annotator "ChessBase"]
[PlyCount "145"]
[EventDate "2022.07.12"]
[EventType "team-tourn"]
[EventCountry "GRE"]
[SourceTitle "playchess.com"]
[Source "ChessBase"]
[SourceQuality "1"]
[WhiteTeam "Germany"]
[BlackTeam "Slovenia"]
[WhiteTeamCountry "GER"]
[BlackTeamCountry "SLO"]
[TimeControl "40/5400+30:1800+30"]

1. d4 {[%emt 0:00:05]} d6 {[%emt 0:00:10]} 2. c4 {[%emt 0:00:05]} e5 {[%emt 0:00:06]} 3. d5 {[%emt 0:00:04]} g6 {[%emt 0:01:22]} 4. e4 {[%emt 0:00:20]} Bg7 {[%emt 0:02:14]} 5. Nc3 {[%emt 0:01:39]} Nh6 {[%emt 0:02:31]} 6. h4 {[%emt 0:01:16]} Na6 {[%emt 0:11:48]} 7. Bd3 {[%emt 0:12:40]} Qe7 {[%emt 0:04:47]} 8. Bc2 {[%emt 0:19:08]} Bd7 {[%emt 0:16:47]} 9. a3 {[%emt 0:04:23]} f6 {[%emt 0:05:40]} 10. Bd2 {[%emt 0:08:16]} Nf7 {[%emt 0:07:30]} 11. h5 {[%emt 0:05:43]} f5 {[%emt 0:04:22]} 12. hxg6 {[%emt 0:02:22]} hxg6 {[%emt 0:00:07]} 13. Rxh8+ {[%emt 0:00:05]} Bxh8 {[%emt 0:01:15]} 14. Qe2 {[%emt 0:00:26]} O-O-O {[%emt 0:01:19]} 15. b4 {[%emt 0:03:22]} Bf6 {[%emt 0:06:46]} 16. Be3 {[%emt 0:14:28]} Bg5 {[%emt 0:10:14]} 17. Nf3 {[%emt 0:05:47]} Rh8 {[%emt 0:03:05]} 18. O-O-O {[%emt 0:00:24]} Bxe3+ {[%emt 0:00:29]} 19. Qxe3 {[%emt 0:00:02]} b6 {[%emt 0:00:07]} 20. Bd3 {[%emt 0:05:06]} Kb7 {[%emt 0:01:06]} 21. Kc2 {[%emt 0:04:46]} f4 {[%emt 0:02:41]} 22. Qe2 {[%emt 0:04:50]} Nb8 {[%emt 0:00:07]} 23. a4 {[%emt 0:01:00]} Bg4 {[%emt 0:02:36]} 24. a5 {[%emt 0:00:19]} Ng5 {[%emt 0:02:30]} 25. axb6 {[%emt 0:03:01]} axb6 {[%emt 0:06:02]} 26. Ra1 {[%emt 0:00:33]} Na6 {[%emt 0:00:04]} 27. Kb3 {[%emt 0:02:51]} Ra8 {[%emt 0:00:24]} 28. Ra3 {[%emt 0:00:19]} Bxf3 {[%emt 0:04:33]} 29. gxf3 {[%emt 0:00:05]} Nb8 {[%emt 0:00:04]} 30. Rxa8 {[%emt 0:00:05]} Kxa8 {[%emt 0:00:03]} 31. Qa2+ {[%emt 0:01:00]} Kb7 {[%emt 0:00:05]} 32. Be2 {[%emt 0:00:51]} Qd7 {[%emt 0:01:37]} 33. Nb5 {[%emt 0:00:45]} Na6 {[%emt 0:00:06]} 34. Nc3 {[%emt 0:00:01]} Nb8 {[%emt 0:00:08]} 35. c5 {[%emt 0:00:48]} dxc5 {[%emt 0:00:50]} 36. bxc5 {[%emt 0:00:05]} bxc5 {[%emt 0:00:16]} 37. Qa5 {[%emt 0:00:45]} Qd6 {[%emt 0:01:10]} 38. Na4 {[%emt 0:00:07]} Kc8 {[%emt 0:00:54]} 39. Kc2 {[%emt 0:01:27]} c4 {[%emt 0:00:26]} 40. Qb5 {[%emt 0:00:00]} Nd7 {[%emt 0:00:00]} 41. Qxc4 {[%emt 0:02:09]} Kd8 {[%emt 0:04:19]} 42. Qc3 {[%emt 0:06:38]} Ke7 {[%emt 0:05:50]} 43. Kd1 {[%emt 0:06:07]} Kf6 {[%emt 0:04:50]} 44. Bb5 {[%emt 0:03:30]} Nf7 {[%emt 0:04:21]} 45. Ke1 {[%emt 0:02:36]} g5 {[%emt 0:05:17]} 46. Kf1 {[%emt 0:00:35]} Nf8 {[%emt 0:00:53]} 47. Nc5 {[%emt 0:01:27]} Qb6 {[%emt 0:03:34]} 48. Bd3 {[%emt 0:00:50]} Ke7 {[%emt 0:01:05]} 49. Na4 {[%emt 0:01:02]} Qd6 {[%emt 0:01:53]} 50. Qa5 {[%emt 0:01:11]} Nh6 {[%emt 0:01:02]} 51. Nb2 {[%emt 0:03:38]} Qb6 {[%emt 0:01:25]} 52. Qa3+ {[%emt 0:00:02]} Qd6 {[%emt 0:00:13]} 53. Qc3 {[%emt 0:01:21]} Nd7 {[%emt 0:00:12]} 54. Na4 {[%emt 0:01:30]} g4 {[%emt 0:00:34]} 55. Bb5 {[%emt 0:00:56]} Nf6 {[%emt 0:01:00]} 56. fxg4 {[%emt 0:04:45]} Nhxg4 {[%emt 0:01:05]} 57. f3 {[%emt 0:00:34]} Ne3+ {[%emt 0:01:12]} 58. Ke2 {[%emt 0:00:20]} Nh5 {[%emt 0:00:39]} 59. Nc5 {[%emt 0:00:41]} Ng3+ {[%emt 0:00:09]} 60. Ke1 {[%emt 0:00:16]} Ng2+ {[%emt 0:01:38]} 61. Kd2 {[%emt 0:00:27]} c6 {[%emt 0:01:04]} 62. Bxc6 {[%emt 0:00:42]} Nf1+ {[%emt 0:00:05]} 63. Ke2 {[%emt 0:00:17]} Ng3+ {[%emt 0:00:06]} 64. Kf2 {[%emt 0:00:17]} Ne3 {[%emt 0:00:07]} 65. Qa5 {[%emt 0:00:14]} Qb8 {[%emt 0:01:38]} 66. Nb7 {[%emt 0:00:37]} Kf6 {[%emt 0:01:04]} 67. Qa6 {[%emt 0:01:19]} Kg5 {[%emt 0:00:18]} 68. Qb6 {[%emt 0:00:35]} Nc4 {[%emt 0:00:55]} 69. Qc5 {[%emt 0:00:10]} Nd6 {[%emt 0:00:05]} 70. Qxd6 {[%emt 0:00:08]} Qa7+ {[%emt 0:00:04]} 71. Kg2 {[%emt 0:00:17]} Qa2+ {[%emt 0:01:06]} 72. Kh3 {[%emt 0:00:07]} Qa1 {[%emt 0:00:03]} 73. Qe7+ {[%emt 0:00:09]} 1-0

[Event "EYTCC Open U18 2022"]
[Site "Thessaloniki"]
[Date "2022.07.12"]
[Round "1.4"]
[White "Lavrencic, Matic"]
[Black "Krastev, Alexander"]
[Result "1-0"]
[ECO "B27"]
[WhiteElo "2151"]
[BlackElo "2435"]
[Annotator "ChessBase"]
[PlyCount "97"]
[EventDate "2022.07.12"]
[EventType "team-tourn"]
[EventCountry "GRE"]
[SourceTitle "playchess.com"]
[Source "ChessBase"]
[SourceQuality "1"]
[WhiteTeam "Slovenia"]
[BlackTeam "Germany"]
[WhiteTeamCountry "SLO"]
[BlackTeamCountry "GER"]
[TimeControl "40/5400+30:1800+30"]

1. e4 {[%emt 0:00:04]} c5 {[%emt 0:00:10]} 2. Nf3 {[%emt 0:00:06]} g6 {[%emt 0:00:14]} 3. d4 {[%emt 0:00:19]} Bg7 {[%emt 0:00:06]} 4. c3 {[%emt 0:00:33]} cxd4 {[%emt 0:01:28]} 5. cxd4 {[%emt 0:00:05]} d5 {[%emt 0:00:04]} 6. e5 {[%emt 0:00:07]} Bg4 {[%emt 0:02:46]} 7. Bb5+ {[%emt 0:03:04]} Nd7 {[%emt 0:07:58]} 8. O-O {[%emt 0:01:08]} e6 {[%emt 0:01:24]} 9. Nbd2 {[%emt 0:02:26]} Ne7 {[%emt 0:02:39]} 10. h3 {[%emt 0:01:05]} Bxf3 {[%emt 0:00:15]} 11. Nxf3 {[%emt 0:00:27]} O-O {[%emt 0:00:20]} 12. h4 {[%emt 0:09:07]} Nc6 {[%emt 0:15:27]} 13. h5 {[%emt 0:06:22]} Qb6 {[%emt 0:04:14]} 14. Ba4 {[%emt 0:02:12]} Rfc8 {[%emt 0:08:34]} 15. Qe2 {[%emt 0:17:53]} Qb4 {[%emt 0:12:01]} 16. Bxc6 {[%emt 0:03:01]} bxc6 {[%emt 0:04:02]} 17. Be3 {[%emt 0:04:07]} c5 {[%emt 0:03:42]} 18. Rfc1 {[%emt 0:01:42]} c4 {[%emt 0:11:32]} 19. h6 {[%emt 0:01:04]} Bf8 {[%emt 0:00:24]} 20. Rc2 {[%emt 0:01:09]} Qa4 {[%emt 0:01:58]} 21. g4 {[%emt 0:09:01]} Rab8 {[%emt 0:01:36]} 22. Kg2 {[%emt 0:02:49]} Rc6 {[%emt 0:06:14]} 23. b3 {[%emt 0:05:01]} cxb3 {[%emt 0:09:47]} 24. Rxc6 {[%emt 0:00:07]} b2 {[%emt 0:00:06]} 25. Rb1 {[%emt 0:01:13]} Qxc6 {[%emt 0:00:42]} 26. Rxb2 {[%emt 0:00:10]} Nb6 {[%emt 0:00:54]} 27. g5 {[%emt 0:06:23]} Qc7 {[%emt 0:01:27]} 28. Qa6 {[%emt 0:02:21]} Nc4 {[%emt 0:01:04]} 29. Rxb8 {[%emt 0:00:12]} Qxb8 {[%emt 0:00:02]} 30. Bf4 {[%emt 0:01:02]} Bb4 {[%emt 0:00:53]} 31. Qc6 {[%emt 0:03:48]} Ba5 {[%emt 0:03:12]} 32. Nh2 {[%emt 0:03:10]} Bb4 {[%emt 0:00:35]} 33. Ng4 {[%emt 0:04:10]} Be7 {[%emt 0:00:34]} 34. Qd7 {[%emt 0:03:34]} Kf8 {[%emt 0:00:32]} 35. Nf6 {[%emt 0:01:44]} Bxf6 {[%emt 0:00:04]} 36. exf6 {[%emt 0:00:33]} Qa8 {[%emt 0:00:01]} 37. Qe7+ {[%emt 0:01:58]} Kg8 {[%emt 0:00:01]} 38. Qc7 {[%emt 0:01:16]} a5 {[%emt 0:00:56]} 39. Bd6 {[%emt 0:00:00]} a4 {[%emt 0:00:00]} 40. Kg3 {[%emt 0:00:00]} Na5 {[%emt 0:00:00]} 41. Qd7 {[%emt 0:05:21]} Nc6 {[%emt 0:09:36]} 42. Bc5 {[%emt 0:02:00]} e5 {[%emt 0:02:43]} 43. Qxd5 {[%emt 0:01:38]} exd4 {[%emt 0:00:13]} 44. Bxd4 {[%emt 0:01:01]} Qb8+ {[%emt 0:00:38]} 45. Kg2 {[%emt 0:00:44]} Qc8 {[%emt 0:03:12]} 46. Qe4 {[%emt 0:01:41]} Nb4 {[%emt 0:09:36]} 47. a3 {[%emt 0:01:42]} Nc2 {[%emt 0:05:35]} 48. Bb2 {[%emt 0:00:38]} Kf8 {[%emt 0:00:49]} 49. Kg1 {[%emt 0:02:51]} 1-0

[Event "EYTCC Open U18 2022"]
[Site "Thessaloniki"]
[Date "2022.07.12"]
[Round "1.5"]
[White "Risteski, Emil"]
[Black "Milikow, Yoav"]
[Result "1/2-1/2"]
[ECO "C54"]
[WhiteElo "2405"]
[BlackElo "2452"]
[Annotator "ChessBase"]
[PlyCount "194"]
[EventDate "2022.07.12"]
[EventType "team-tourn"]
[EventCountry "GRE"]
[SourceTitle "playchess.com"]
[Source "ChessBase"]
[SourceQuality "1"]
[WhiteTeam "Macedonia"]
[BlackTeam "Israel"]
[WhiteTeamCountry "MKD"]
[BlackTeamCountry "ISR"]
[TimeControl "40/5400+30:1800+30"]

1. e4 {[%emt 0:00:17]} e5 {[%emt 0:00:13]} 2. Nf3 {[%emt 0:00:11]} Nc6 {[%emt 0:00:10]} 3. Bc4 {[%emt 0:00:26]} Nf6 {[%emt 0:00:08]} 4. d3 {[%emt 0:00:11]} Bc5 {[%emt 0:00:30]} 5. O-O {[%emt 0:05:21]} d6 {[%emt 0:00:09]} 6. c3 {[%emt 0:00:19]} a5 {[%emt 0:00:35]} 7. Re1 {[%emt 0:01:24]} O-O {[%emt 0:01:04]} 8. h3 {[%emt 0:00:30]} h6 {[%emt 0:03:11]} 9. Nbd2 {[%emt 0:01:14]} Be6 {[%emt 0:01:01]} 10. Bb5 {[%emt 0:00:58]} Qb8 {[%emt 0:00:30]} 11. Nf1 {[%emt 0:04:55]} Qa7 {[%emt 0:00:17]} 12. d4 {[%emt 0:00:04]} exd4 {[%emt 0:00:07]} 13. Bxc6 {[%emt 0:00:04]} dxc3 {[%emt 0:00:06]} 14. Ba4 {[%emt 0:00:19]} Bxf2+ {[%emt 0:00:07]} 15. Kh2 {[%emt 0:00:44]} Bxe1 {[%emt 0:00:10]} 16. Qxe1 {[%emt 0:00:08]} d5 {[%emt 0:19:14]} 17. Be3 {[%emt 0:25:33]} Qa6 {[%emt 0:02:39]} 18. e5 {[%emt 0:03:45]} Ne4 {[%emt 0:03:53]} 19. bxc3 {[%emt 0:03:42]} f6 {[%emt 0:10:21]} 20. Ng3 {[%emt 0:08:21]} fxe5 {[%emt 0:00:00]} 21. Nxe4 {[%emt 0:00:22]} dxe4 {[%emt 0:00:00]} 22. Nd2 {[%emt 0:01:24]} Qd3 {[%emt 0:03:28]} 23. Rc1 {[%emt 0:03:37]} Bxa2 {[%emt 0:10:03]} 24. Bc2 {[%emt 0:00:42]} Qd6 {[%emt 0:10:28]} 25. c4 {[%emt 0:03:21]} a4 {[%emt 0:01:12]} 26. Bxe4 {[%emt 0:01:31]} c6 27. Ra1 {[%emt 0:14:13]} Bb3 {[%emt 0:03:30]} 28. Nxb3 {[%emt 0:00:25]} axb3 {[%emt 0:00:02]} 29. Rd1 {[%emt 0:00:43]} Qf6 {[%emt 0:04:50]} 30. Qb4 {[%emt 0:05:12]} Qh4 {[%emt 0:02:00]} 31. c5 {[%emt 0:03:53]} Kh8 {[%emt 0:00:28]} 32. Rb1 {[%emt 0:00:38]} Ra2 {[%emt 0:06:38]} 33. Rxb3 {[%emt 0:02:47]} Re2 {[%emt 0:05:20]} 34. Qc4 {[%emt 0:00:35]} Re1 {[%emt 0:01:41]} 35. Bd3 {[%emt 0:00:30]} e4 {[%emt 0:00:58]} 36. Qxe4 {[%emt 0:02:51]} Qxe4 {[%emt 0:00:01]} 37. Bxe4 Re8 {[%emt 0:00:02]} 38. Bf3 {[%emt 0:00:52]} R8xe3 {[%emt 0:01:35]} 39. Rxb7 {[%emt 0:00:17]} Rc3 {[%emt 0:00:14]} 40. Bxc6 {[%emt 0:00:00]} Rxc5 {[%emt 0:00:00]} 41. Bf3 {[%emt 0:00:47]} Rce5 {[%emt 0:01:11]} 42. Rb4 {[%emt 0:04:20]} Kh7 {[%emt 0:01:17]} 43. Rc4 {[%emt 0:01:18]} Re7 {[%emt 0:00:18]} 44. Rb4 {[%emt 0:00:17]} g6 {[%emt 0:00:37]} 45. Rd4 {[%emt 0:00:38]} Kg7 {[%emt 0:00:08]} 46. Rb4 {[%emt 0:00:16]} Rf1 {[%emt 0:00:35]} 47. Rd4 {[%emt 0:01:26]} Kh7 {[%emt 0:00:22]} 48. Rb4 {[%emt 0:00:12]} Kg7 {[%emt 0:00:05]} 49. Rd4 {[%emt 0:00:05]} Rf7 {[%emt 0:00:37]} 50. Rb4 {[%emt 0:00:50]} h5 {[%emt 0:00:42]} 51. h4 {[%emt 0:04:11]} Rc7 {[%emt 0:00:30]} 52. Ra4 {[%emt 0:00:34]} Rfc1 {[%emt 0:00:08]} 53. Rb4 {[%emt 0:01:17]} R7c4 {[%emt 0:00:19]} 54. Rxc4 {[%emt 0:00:06]} Rxc4 {[%emt 0:00:08]} 55. g3 {[%emt 0:00:07]} Rc2+ {[%emt 0:00:14]} 56. Kg1 {[%emt 0:00:04]} Kf6 {[%emt 0:00:11]} 57. Be4 {[%emt 0:00:08]} Re2 {[%emt 0:00:20]} 58. Bf3 {[%emt 0:00:04]} Rc2 {[%emt 0:00:15]} 59. Be4 {[%emt 0:00:21]} Rb2 {[%emt 0:00:08]} 60. Bf3 {[%emt 0:00:12]} Kf5 {[%emt 0:00:10]} 61. Kf1 {[%emt 0:00:06]} Ke5 {[%emt 0:00:11]} 62. Kg1 {[%emt 0:00:22]} Kd4 {[%emt 0:00:12]} 63. Kf1 {[%emt 0:00:08]} Ke3 {[%emt 0:00:11]} 64. Ba8 {[%emt 0:00:07]} Rd2 {[%emt 0:00:59]} 65. Bc6 {[%emt 0:01:38]} Rd6 {[%emt 0:00:46]} 66. Bb7 {[%emt 0:00:29]} Rf6+ {[%emt 0:00:18]} 67. Kg1 {[%emt 0:00:38]} Rf5 {[%emt 0:00:22]} 68. Bc6 {[%emt 0:01:15]} Rc5 {[%emt 0:00:50]} 69. Bb7 {[%emt 0:00:27]} Rc4 {[%emt 0:04:54]} 70. Kg2 {[%emt 0:01:05]} Rc2+ {[%emt 0:00:14]} 71. Kg1 {[%emt 0:01:26]} Rc5 {[%emt 0:00:44]} 72. Kg2 {[%emt 0:00:29]} g5 {[%emt 0:00:18]} 73. hxg5 {[%emt 0:00:29]} Rxg5 {[%emt 0:00:02]} 74. Kh3 {[%emt 0:00:05]} Kf2 {[%emt 0:01:11]} 75. Kh4 {[%emt 0:00:08]} Rxg3 {[%emt 0:00:35]} 76. Kxh5 {[%emt 0:00:09]} Ke3 {[%emt 0:00:07]} 77. Kh6 {[%emt 0:01:13]} Kd4 {[%emt 0:00:08]} 78. Kh7 {[%emt 0:01:46]} Ke5 {[%emt 0:00:42]} 79. Kh8 {[%emt 0:00:36]} Kf6 {[%emt 0:00:07]} 80. Be4 {[%emt 0:00:19]} Rg7 {[%emt 0:00:30]} 81. Bd3 {[%emt 0:02:00]} Kf7 {[%emt 0:00:14]} 82. Bh7 {[%emt 0:02:55]} Rg4 {[%emt 0:00:17]} 83. Bc2 {[%emt 0:00:22]} Rh4+ {[%emt 0:00:58]} 84. Bh7 {[%emt 0:00:11]} Rb4 {[%emt 0:00:23]} 85. Bg8+ {[%emt 0:01:00]} Kf8 {[%emt 0:00:14]} 86. Bh7 {[%emt 0:00:12]} Rg4 {[%emt 0:00:32]} 87. Bc2 {[%emt 0:00:34]} Rg2 {[%emt 0:00:11]} 88. Be4 {[%emt 0:00:37]} Rg4 {[%emt 0:00:10]} 89. Bc2 {[%emt 0:00:21]} Kf7 {[%emt 0:00:37]} 90. Bb3+ {[%emt 0:01:47]} Kg6 {[%emt 0:00:19]} 91. Bc2+ {[%emt 0:00:09]} Kh6 {[%emt 0:00:04]} 92. Bb3 {[%emt 0:00:36]} Rb4 {[%emt 0:00:11]} 93. Bg8 {[%emt 0:00:16]} Rb7 {[%emt 0:00:04]} 94. Bd5 {[%emt 0:00:16]} Rd7 {[%emt 0:00:05]} 95. Bb3 {[%emt 0:01:05]} Rc7 {[%emt 0:00:55]} 96. Bd5 {[%emt 0:00:18]} Rc8+ {[%emt 0:00:31]} 97. Bg8 {[%emt 0:00:06]} Ra8 {[%emt 0:00:06]} 1/2-1/2

[Event "EYTCC Open U18 2022"]
[Site "Thessaloniki"]
[Date "2022.07.12"]
[Round "1.7"]
[White "Jordanov, Mihail"]
[Black "Ben Ari, Yannay"]
[Result "0-1"]
[ECO "B53"]
[WhiteElo "2158"]
[BlackElo "2411"]
[Annotator "ChessBase"]
[PlyCount "56"]
[EventDate "2022.07.12"]
[EventType "team-tourn"]
[EventCountry "GRE"]
[SourceTitle "playchess.com"]
[Source "ChessBase"]
[SourceQuality "1"]
[WhiteTeam "Macedonia"]
[BlackTeam "Israel"]
[WhiteTeamCountry "MKD"]
[BlackTeamCountry "ISR"]
[TimeControl "40/5400+30:1800+30"]

1. e4 {[%emt 0:00:05]} c5 {[%emt 0:00:02]} 2. Nf3 {[%emt 0:00:14]} d6 {[%emt 0:00:02]} 3. d4 {[%emt 0:00:17]} cxd4 {[%emt 0:00:02]} 4. Qxd4 {[%emt 0:00:12]} Nc6 {[%emt 0:00:55]} 5. Qe3 {[%emt 0:00:14]} g6 {[%emt 0:00:51]} 6. Be2 {[%emt 0:01:10]} Bg7 {[%emt 0:00:27]} 7. O-O {[%emt 0:00:41]} Nf6 {[%emt 0:00:37]} 8. h3 {[%emt 0:01:06]} O-O {[%emt 0:00:15]} 9. Rd1 {[%emt 0:00:18]} Be6 {[%emt 0:12:18]} 10. Ng5 {[%emt 0:00:50]} Qc8 {[%emt 0:14:00]} 11. Nxe6 {[%emt 0:16:42]} fxe6 {[%emt 0:04:10]} 12. c4 {[%emt 0:12:43]} Nd7 {[%emt 0:19:02]} 13. Na3 {[%emt 0:20:52]} Nc5 {[%emt 0:10:40]} 14. Rb1 {[%emt 0:13:49]} a6 {[%emt 0:13:53]} 15. b3 {[%emt 0:06:19]} Qe8 {[%emt 0:03:31]} 16. Bb2 {[%emt 0:01:40]} e5 {[%emt 0:01:59]} 17. Nc2 {[%emt 0:04:37]} Qf7 {[%emt 0:02:11]} 18. b4 {[%emt 0:02:52]} Ne6 {[%emt 0:02:11]} 19. c5 {[%emt 0:03:37]} Ned4 {[%emt 0:11:21]} 20. Nxd4 {[%emt 0:02:07]} Nxd4 {[%emt 0:00:45]} 21. cxd6 {[%emt 0:04:09]} exd6 {[%emt 0:00:02]} 22. Rbc1 {[%emt 0:05:34]} Bh6 {[%emt 0:00:16]} 23. Bc4 {[%emt 0:01:05]} Bxe3 {[%emt 0:00:13]} 24. Bxf7+ {[%emt 0:00:19]} Rxf7 {[%emt 0:00:24]} 25. fxe3 {[%emt 0:00:28]} Ne2+ {[%emt 0:00:02]} 26. Kh2 {[%emt 0:00:12]} Nxc1 {[%emt 0:00:03]} 27. Rxc1 {[%emt 0:00:50]} Rf2 {[%emt 0:00:08]} 28. Bc3 {[%emt 0:00:48]} Rc8 {[%emt 0:00:37]} 0-1